bitfinex/quotes_SOLUSD_20220228
["timestamp","ask_amount","ask_price","bid_price","bid_amount"]
[1646060449742,58.09499199,94.489,94.365,3.236]
[1646060449942,1.75493358,94.488,94.365,3.236]
[1646060450543,1.75493358,94.488,94.327,23.2557]
[1646060450544,2.74678921,94.487,94.327,23.2557]
[1646060451145,1.75493358,94.488,94.328,2.63990561]
[1646060451446,1.75493358,94.488,94.33,15.21885046]
[1646060451644,1.68374409,94.499,94.33,15.21885046]
[1646060451846,12.67,94.51,94.331,67.67510672]
[1646060452045,2.14675825,94.509,94.332,2.19408024]
[1646060452444,2.14675825,94.509,94.308,108.8]
[1646060452645,1517.60022842,94.266,94.265,88.87647271]
[1646060452848,721.95698748,94.266,94.265,94.74357637]
[1646060453045,413.9810101,94.266,94.265,122.71373785]
[1646060453245,3.93,94.488,94.265,125.46052706]
[1646060453446,2.73857329,94.489,94.284,2.74678921]
[1646060453648,2.74678921,94.487,94.284,2.74678921]
[1646060453844,2.74678921,94.487,94.285,108.8]
[1646060454046,48.8274371,94.486,94.286,1.70169563]
[1646060454248,3.94,94.478,94.301,108.8]
[1646060454454,12.67,94.48,94.309,108.8]
[1646060454648,2.45544214,94.479,94.321,108.8]
[1646060454850,2.1963945,94.485,94.331,108.8]
[1646060455051,0.6,94.478,94.34,12.67]
[1646060455248,4.236,94.484,94.34,12.67]
[1646060455649,4.236,94.484,94.341,2.74678921]
[1646060455849,2.1963945,94.485,94.341,2.74678921]
[1646060456050,4.236,94.484,94.343,108.8]
[1646060456249,4.236,94.484,94.341,4.65138835]
[1646060456250,4.236,94.484,94.349,108.8]
[1646060456549,4.236,94.484,94.34,12.67]
[1646060456550,4.236,94.536,94.363,108.8]
[1646060456751,4.235,94.547,94.371,108.8]
[1646060456952,4.235,94.547,94.38,12.67]
[1646060457152,0.6,94.528,94.38,12.67]
[1646060457351,0.6,94.518,94.38,12.67]
[1646060457551,47.33969619,94.527,94.352,1.93434748]
[1646060457752,2.36707531,94.526,94.353,6.0]
[1646060457953,47.33969619,94.527,94.381,2.74678921]
[1646060458151,47.33969619,94.527,94.391,108.8]
[1646060458353,47.33969619,94.527,94.393,108.8]
[1646060458551,4.234,94.526,94.394,1.90323856]
[1646060458957,4.234,94.526,94.4,65.23]
[1646060459162,4.234,94.587,94.411,174.03]
[1646060459354,4.234,94.587,94.412,1.80044334]
[1646060459565,2.35002155,94.6,94.412,1.80044334]
[1646060459566,4.232,94.599,94.412,1.80044334]
[1646060459757,4.232,94.599,94.431,174.03]
[1646060459956,46.17427424,94.598,94.441,174.03]
[1646060460165,2.70898284,94.597,94.442,1.77458405]
[1646060460357,46.17427424,94.598,94.442,4.52137326]
[1646060460557,6.52636622,94.597,94.444,1.92349745]
[1646060460956,6.52636622,94.597,94.445,2.74678921]
[1646060461260,2.74678921,94.596,94.443,108.8]
[1646060461457,4.231,94.595,94.44,171.07]
[1646060461861,2.74678921,94.594,94.441,108.8]
[1646060462060,2.0377924,94.593,94.44,12.67]
[1646060462256,0.6,94.588,94.44,12.67]
[1646060462457,0.6,94.578,94.44,12.67]
[1646060462658,55.83721466,94.577,94.44,12.67]
[1646060462858,3.94,94.568,94.44,12.67]
[1646060463258,46.39433698,94.557,94.44,12.67]
[1646060463459,6.83928214,94.556,94.44,12.67]
[1646060463658,0.6,94.548,94.4,12.67]
[1646060463858,3.94,94.548,94.4,12.67]
[1646060464058,0.6,94.528,94.41,12.67]
[1646060464258,0.6,94.528,94.377,23.8894]
[1646060464259,4.233,94.527,94.39,12.67]
[1646060464460,108.8,94.525,94.38,12.67]
[1646060464661,2.70867221,94.524,94.385,108.8]
[1646060464957,3.94,94.518,94.377,23.8894]
[1646060465157,3.94,94.508,94.377,23.8894]
[1646060465358,52.35624669,94.507,94.384,24.2726]
[1646060465558,2.30848201,94.506,94.384,24.2726]
[1646060465758,3.94,94.498,94.384,24.2726]
[1646060465957,0.6,94.488,94.384,24.2726]
[1646060466158,3.34,94.498,94.384,24.2726]
[1646060466361,4.77881149,94.505,94.384,24.2726]
[1646060466559,2.74678921,94.497,94.384,24.2726]
[1646060467059,2.03202228,94.505,94.384,24.2726]
[1646060467262,2.74678921,94.536,94.39,12.67]
[1646060467460,3.34,94.568,94.391,65.23]
[1646060467658,2.37310779,94.56,94.393,174.03]
[1646060467858,2.37192707,94.559,94.394,1.94302518]
[1646060468060,0.6,94.578,94.394,1.94302518]
[1646060468260,2.74678921,94.556,94.395,2.74678921]
[1646060468460,2.74678921,94.556,94.395,111.54678921]
[1646060468663,2.03520973,94.555,94.397,108.8]
[1646060468961,42.91806812,94.532,94.412,1.81203584]
[1646060469361,2.1620143,94.586,94.413,108.8]
[1646060469563,2.74678921,94.566,94.429,108.8]
[1646060469764,2.74678921,94.566,94.43,1.93791482]
[1646060469961,2.74678921,94.586,94.44,12.67]
[1646060470162,2.16279246,94.589,94.442,2.16285543]
[1646060470360,45.86678045,94.588,94.442,67.39285543]
[1646060470563,2.62402149,94.587,94.444,1.70684918]
[1646060470963,2.74678921,94.586,94.445,2.74678921]
[1646060471361,2.62402149,94.587,94.445,2.74678921]
[1646060471563,2.62402149,94.587,94.428,393.35688704]
[1646060471564,2.74678921,94.586,94.435,2.74678921]
[1646060471762,4.232,94.585,94.429,108.8]
[1646060471963,4.232,94.585,94.44,12.67]
[1646060472161,6.97878921,94.585,94.44,12.67]
[1646060472364,2.74678921,94.585,94.44,12.67]
[1646060472565,2.74678921,94.585,94.441,108.8]
[1646060472764,4.232,94.584,94.441,108.8]
[1646060472963,4.232,94.584,94.44,12.67]
[1646060473163,2.74678921,94.583,94.44,12.67]
[1646060473763,4.232,94.582,94.44,12.67]
[1646060473962,4.232,94.582,94.441,108.8]
[1646060474165,2.62402149,94.587,94.44,12.67]
[1646060474166,2.74678921,94.581,94.44,12.67]
[1646060474563,4.232,94.58,94.44,12.67]
[1646060474966,3.94,94.568,94.44,12.67]
[1646060475165,0.6,94.558,94.44,12.67]
[1646060475364,3.73,94.548,94.428,393.35688704]
[1646060475566,62.10809281,94.547,94.428,393.35688704]
[1646060475865,3.73,94.538,94.41,12.67]
[1646060476166,3.73,94.518,94.39,12.67]
[1646060476371,60.01229637,94.516,94.39,12.67]
[1646060476574,7.02720311,94.515,94.39,12.67]
[1646060476767,2.79320311,94.515,94.39,12.67]
[1646060477168,2.74678921,94.514,94.352,24.6517]
[1646060477368,3.73,94.508,94.37,12.67]
[1646060477572,3.73,94.508,94.352,24.6517]
[1646060477573,53.77799288,94.487,94.36,12.67]
[1646060478068,2.69477663,94.486,94.36,12.67]
[1646060478267,5.44156584,94.486,94.36,12.67]
[1646060478468,2.74678921,94.485,94.361,108.8]
[1646060480072,2.74678921,94.485,94.36,12.67]
[1646060481472,4.96121677,94.485,94.36,12.67]
[1646060481871,2.74678921,94.484,94.36,12.67]
[1646060482073,3.73,94.458,94.351,507.67090617]
[1646060482272,0.6,94.448,94.31,12.67]
[1646060482473,54.8298598,94.416,94.28,12.67]
[1646060482679,54.8298598,94.416,94.27,12.67]
[1646060482873,2.05043502,94.415,94.271,108.8]
[1646060483075,2.05043502,94.415,94.27,12.67]
[1646060483076,2.05043502,94.415,94.281,2.74678921]
[1646060483277,12.67,94.41,94.248,2.74678921]
[1646060483474,0.6,94.367,94.248,2.74678921]
[1646060483673,0.6,94.367,94.179,4.24]
[1646060483674,0.6,94.357,94.2,12.67]
[1646060483973,0.6,94.327,94.18,12.67]
[1646060484173,3.73,94.327,94.18,12.67]
[1646060484376,0.6,94.317,94.17,12.67]
[1646060484574,3.73,94.317,94.155,4.242]
[1646060484874,2.74678921,94.316,94.155,4.242]
[1646060485075,2.74678921,94.316,94.18,12.67]
[1646060485278,2.37364577,94.325,94.18,12.67]
[1646060485474,2.37364577,94.325,94.154,72.1]
[1646060485677,2.37364577,94.325,94.21,12.67]
[1646060485875,2.37364577,94.325,94.23,12.67]
[1646060486075,2.37364577,94.325,94.235,2.74678921]
[1646060486274,2.37364577,94.325,94.23,12.67]
[1646060486474,2.37364577,94.325,94.21,12.67]
[1646060486673,2.37364577,94.325,94.2,12.67]
[1646060486874,2.37364577,94.325,94.202,2.74678921]
[1646060487075,2.37364577,94.325,94.21,12.67]
[1646060487299,2.37364577,94.325,94.142,1.81716775]
[1646060487499,2.37364577,94.325,94.21,12.67]
[1646060487699,2.74678921,94.324,94.21,12.67]
[1646060487901,2.74678921,94.324,94.182,447.92784232]
[1646060487902,2.74678921,94.324,94.2,12.67]
[1646060488101,2.74678921,94.324,94.19,12.67]
[1646060488601,2.74678921,94.324,94.182,447.92784232]
[1646060488801,0.6,94.307,94.234,0.000389]
[1646060489001,3.73,94.297,94.234,0.000389]
[1646060489202,79.7035,94.296,94.234,0.000389]
[1646060489400,0.6,94.277,94.234,0.000389]
[1646060489603,3.73,94.277,94.234,0.000389]
[1646060489900,2.74678921,94.276,94.234,0.000389]
[1646060490505,3.73,94.267,94.234,0.000389]
[1646060490901,2.74678921,94.266,94.119,442.81303187]
[1646060491101,4.246,94.265,94.13,12.67]
[1646060491301,3.73,94.257,94.119,442.81303187]
[1646060491503,3.73,94.237,94.119,442.81303187]
[1646060491701,3.73,94.227,94.119,442.81303187]
[1646060491901,0.6,94.197,94.119,442.81303187]
[1646060492102,3.73,94.197,94.119,442.81303187]
[1646060492302,44.82777379,94.196,94.119,442.81303187]
[1646060492503,2.72004085,94.195,94.119,442.81303187]
[1646060493303,2.59756911,94.224,94.12,12.67]
[1646060493505,2.4343729,94.229,94.12,12.67]
[1646060493703,4.248,94.282,94.119,111.54678921]
[1646060493904,3.73,94.307,94.122,108.8]
[1646060494104,3.73,94.307,94.13,12.67]
[1646060494105,50.57319566,94.267,94.13,12.67]
[1646060494304,2.6810881,94.266,94.131,108.8]
[1646060494508,2.6810881,94.266,94.13,12.67]
[1646060495109,2.6810881,94.266,94.131,2.74678921]
[1646060495307,2.6810881,94.266,94.131,111.54678921]
[1646060495710,2.6810881,94.266,94.146,108.8]
[1646060495908,28.839,94.289,94.161,108.8]
[1646060495909,2.73384975,94.287,94.161,108.8]
[1646060496107,2.73384975,94.287,94.17,12.67]
[1646060496309,2.73384975,94.287,94.18,12.67]
[1646060496507,4.244,94.286,94.18,12.67]
[1646060496709,56.01069738,94.285,94.18,12.67]
[1646060497010,4.244,94.323,94.18,12.67]
[1646060497210,4.243,94.326,94.18,12.67]
[1646060497609,2.74678921,94.325,94.181,108.8]
[1646060498009,2.43978438,94.323,94.19,12.67]
[1646060498412,2.74678921,94.322,94.19,12.67]
[1646060498808,28.00492293,94.322,94.19,12.67]
[1646060499011,2.38817077,94.321,94.19,12.67]
[1646060499309,2.03566742,94.319,94.145,430.11277831]
[1646060499609,3.73,94.307,94.17,12.67]
[1646060499810,50.25403887,94.306,94.16,12.67]
[1646060500010,2.27196097,94.305,94.16,12.67]
[1646060500411,0.6,94.287,94.145,430.11277831]
[1646060500609,3.548,94.304,94.145,430.11277831]
[1646060500610,0.6,94.257,94.145,430.11277831]
[1646060500813,3.73,94.257,94.145,430.11277831]
[1646060501210,2.74678921,94.256,94.145,430.11277831]
[1646060501411,0.6,94.237,94.145,430.11277831]
[1646060501615,0.6,94.197,94.1,4.0]
[1646060501811,0.6,94.187,94.1,4.0]
[1646060502010,3.13,94.187,94.1,4.0]
[1646060502210,63.34349143,94.196,94.1,4.0]
[1646060502211,2.16544045,94.195,94.1,4.0]
[1646060502411,2.74678921,94.186,94.1,3.4048]
[1646060503614,3.73,94.177,94.1,3.4048]
[1646060503814,6.17778479,94.177,94.1,3.4048]
[1646060504015,3.73,94.167,94.02,12.67]
[1646060504215,4.251,94.166,94.02,12.67]
[1646060504414,6.99778921,94.166,94.02,12.67]
[1646060504615,9.27085895,94.166,94.02,12.67]
[1646060504814,3.73,94.157,94.01,360.09501408]
[1646060505016,108.8,94.149,94.01,360.09501408]
[1646060505215,12.67,94.15,94.01,360.09501408]
[1646060505216,61.41471395,94.147,94.01,360.09501408]
[1646060505416,3.73,94.117,94.01,360.09501408]
[1646060505616,54.40859127,94.116,94.02,2.0]
[1646060505818,2.19970144,94.115,94.02,2.0]
[1646060506719,2.74678921,94.114,94.02,2.0]
[1646060506917,3.73,94.167,94.02,4.0]
[1646060507118,0.6,94.167,94.02,4.0]
[1646060507316,3.73,94.167,94.02,4.0]
[1646060507719,49.06818487,94.15,94.02,4.0]
[1646060507918,4.252,94.144,94.031,108.8]
[1646060508117,4.252,94.144,94.03,12.67]
[1646060508318,4.252,94.144,94.032,27.6723185]
[1646060508520,2.60489045,94.194,94.032,30.41910771]
[1646060508723,2.60489045,94.194,94.033,2.74678921]
[1646060509022,2.38430461,94.192,94.034,108.8]
[1646060509221,2.38430461,94.192,94.034,54.39663324]
[1646060509419,6.99678921,94.191,94.034,27.6723185]
[1646060509620,2.74678921,94.191,94.034,27.6723185]
[1646060509822,2.74678921,94.19,94.034,27.6723185]
[1646060510023,1.74678921,94.19,94.035,111.54678921]
[1646060510222,4.25,94.19,94.035,2.74678921]
[1646060510420,2.38430461,94.192,94.036,2.74678921]
[1646060510622,2.38430461,94.192,94.05,12.67]
[1646060510923,2.38430461,94.192,94.021,108.8]
[1646060511120,2.38430461,94.192,94.051,2.74678921]
[1646060511321,2.38430461,94.192,94.06,12.67]
[1646060512020,50.66948735,94.193,94.061,108.8]
[1646060512220,2.49557895,94.192,94.061,138.94469935]
[1646060512420,2.49557895,94.192,94.062,2.74678921]
[1646060512620,2.49557895,94.192,94.062,30.14469935]
[1646060512821,2.49557895,94.192,94.062,27.39791014]
[1646060513021,6.99578921,94.191,94.059,108.8]
[1646060513222,2.49557895,94.192,94.07,12.67]
[1646060513449,2.49557895,94.192,94.071,108.8]
[1646060514021,2.49557895,94.192,94.072,2.74678921]
[1646060514824,2.49557895,94.192,94.071,108.8]
[1646060514825,12.67,94.26,94.071,108.8]
[1646060515123,2.44749179,94.245,94.072,2.74678921]
[1646060515324,111.24749179,94.245,94.072,2.74678921]
[1646060515524,2.74678921,94.236,94.072,2.74678921]
[1646060515725,4.248,94.235,94.072,2.74678921]
[1646060515924,57.72687864,94.234,94.072,2.74678921]
[1646060516126,2.1976787,94.233,94.072,2.74678921]
[1646060516330,2.1976787,94.233,94.072,111.54678921]
[1646060516625,0.68440391,94.192,94.072,111.54678921]
[1646060516825,59.73973276,94.191,94.081,108.8]
[1646060517226,59.73973276,94.191,94.082,2.74678921]
[1646060517526,62.03191696,94.191,94.083,108.8]
[1646060517927,0.68440391,94.192,94.084,2.74678921]
[1646060518131,73.86853913,94.315,94.086,108.8]
[1646060518326,2.59283326,94.26,94.091,108.8]
[1646060518527,0.6,94.337,94.085,120.0]
[1646060518528,2.19849964,94.314,94.191,2.0]
[1646060518726,4.247,94.316,94.191,2.0]
[1646060518931,54.24517792,94.315,94.2,12.67]
[1646060519129,2.48563137,94.314,94.2,12.67]
[1646060519727,4.243,94.313,94.2,12.67]
[1646060520327,2.48563137,94.314,94.2,12.67]
[1646060521529,4.243,94.313,94.2,12.67]
[1646060521726,2.48563137,94.314,94.2,12.67]
[1646060522327,4.243,94.313,94.2,12.67]
[1646060523327,2.48563137,94.314,94.2,12.67]
[1646060523727,2.48563137,94.314,94.191,4.0]
[1646060523728,4.243,94.313,94.191,4.0]
[1646060523927,2.48563137,94.314,94.191,4.0]
[1646060524628,3.13,94.313,94.191,4.0]
[1646060525026,0.02802521,94.313,94.191,4.0]
[1646060525628,3.476,94.312,94.191,4.0]
[1646060526527,0.02802521,94.313,94.191,4.0]
[1646060526928,0.02802521,94.313,94.191,112.8]
[1646060527129,0.02802521,94.313,94.192,2.74678921]
[1646060527730,0.02802521,94.313,94.194,108.8]
[1646060527928,0.02802521,94.313,94.201,108.8]
[1646060528128,0.02802521,94.313,94.23,158.4]
[1646060528328,0.02802521,94.313,94.241,108.8]
[1646060528729,0.02802521,94.313,94.242,2.74678921]
[1646060529331,0.02802521,94.313,94.241,108.8]
[1646060529629,0.02802521,94.313,94.241,111.54678921]
[1646060529833,0.00802521,94.313,94.241,111.54678921]
[1646060530029,0.00802521,94.313,94.242,4.33216515]
[1646060530331,0.00802521,94.313,94.281,108.8]
[1646060530529,0.00802521,94.313,94.291,108.8]
[1646060530728,2.3188291,94.436,94.301,108.8]
[1646060530929,2.3188291,94.436,94.31,12.67]
[1646060531132,2.3188291,94.436,94.311,114.8]
[1646060531331,2.18295126,94.434,94.311,114.8]
[1646060531530,4.238,94.433,94.31,12.67]
[1646060531932,2.18295126,94.434,94.31,12.67]
[1646060534539,6.98478921,94.433,94.31,12.67]
[1646060534938,4.238,94.433,94.31,12.67]
[1646060535238,30.10570942,94.432,94.29,12.67]
[1646060535537,6.94511716,94.431,94.29,12.67]
[1646060535738,0.6,94.427,94.29,12.67]
[1646060535957,52.43163092,94.416,94.27,12.67]
[1646060536158,3.73,94.407,94.27,12.67]
[1646060536958,6.98678921,94.406,94.27,12.67]
[1646060537262,2.40923716,94.406,94.27,12.67]
[1646060537458,3.73,94.397,94.24,12.67]
[1646060537659,44.24447018,94.386,94.24,12.67]
[1646060537859,2.61503947,94.384,94.24,12.67]
[1646060538060,0.6,94.367,94.24,12.67]
[1646060538258,60.45043824,94.366,94.192,24.2734]
[1646060538461,111.00402091,94.365,94.186,24.9503]
[1646060538660,3.73,94.347,94.19,12.67]
[1646060538859,108.8,94.335,94.19,12.67]
[1646060539060,2.50806665,94.334,94.19,12.67]
[1646060539562,5.25485586,94.334,94.19,12.67]
[1646060539761,4.243,94.333,94.191,112.8]
[1646060539960,6.98978921,94.333,94.191,4.0]
[1646060540361,4.243,94.333,94.191,4.0]
[1646060540568,2.74678921,94.344,94.191,4.0]
[1646060540763,2.28521025,94.344,94.194,65.23]
[1646060540964,2.28521025,94.344,94.192,2.74678921]
[1646060540965,2.28521025,94.344,94.201,108.8]
[1646060541166,15.9231,94.398,94.215,108.8]
[1646060541363,111.942,94.38,94.231,108.8]
[1646060541563,108.8,94.378,94.23,12.67]
[1646060541763,2.62608949,94.377,94.231,108.8]
[1646060542063,2.62608949,94.377,94.23,12.67]
[1646060542264,108.8,94.376,94.23,12.67]
[1646060542463,108.8,94.374,94.23,12.67]
[1646060542762,2.74483584,94.373,94.23,12.67]
[1646060543164,4.241,94.372,94.23,12.67]
[1646060543366,4.241,94.372,94.231,108.8]
[1646060544165,4.241,94.372,94.23,12.67]
[1646060544665,2.39796404,94.37,94.23,12.67]
[1646060545465,3.73,94.357,94.2,12.67]
[1646060545665,108.8,94.354,94.2,12.67]
[1646060545864,56.43579897,94.355,94.2,12.67]
[1646060545865,3.73,94.347,94.2,12.67]
[1646060546065,3.73,94.337,94.2,12.67]
[1646060546266,2.61342036,94.348,94.2,12.67]
[1646060546465,108.8,94.335,94.2,12.67]
[1646060546667,108.8,94.333,94.2,12.67]
[1646060546965,108.8,94.331,94.2,12.67]
[1646060547167,108.8,94.329,94.2,12.67]
[1646060547369,2.57408601,94.328,94.2,12.67]
[1646060547565,4.243,94.327,94.2,12.67]
[1646060547766,108.8,94.319,94.191,4.0]
[1646060547966,108.8,94.305,94.191,4.0]
[1646060548166,2.30187633,94.304,94.191,4.0]
[1646060548369,0.6,94.297,94.191,4.0]
[1646060548669,3.73,94.287,94.191,4.0]
[1646060548868,108.8,94.285,94.191,4.0]
[1646060549068,2.45639014,94.284,94.191,4.0]
[1646060549268,5.20317935,94.284,94.191,4.0]
[1646060549467,4.244,94.283,94.191,4.0]
[1646060549668,6.99078921,94.283,94.191,4.0]
[1646060549870,2.74678921,94.282,94.191,4.0]
[1646060550069,4.244,94.281,94.191,3.0]
[1646060550668,2.45639014,94.284,94.191,3.0]
[1646060550869,3.73,94.277,94.191,3.0]
[1646060551171,0.6,94.267,94.191,3.0]
[1646060551369,53.95031105,94.265,94.191,3.0]
[1646060551771,2.59144869,94.264,94.191,3.0]
[1646060552870,4.245,94.263,94.191,3.0]
[1646060553071,4.245,94.285,94.191,3.0]
[1646060553270,4.244,94.316,94.191,3.0]
[1646060553471,2.13098042,94.317,94.191,3.0]
[1646060553673,48.38232845,94.316,94.191,3.0]
[1646060553971,2.53967361,94.315,94.191,3.0]
[1646060554172,4.243,94.314,94.191,3.0]
[1646060554372,2.53967361,94.315,94.191,3.0]
[1646060555174,2.53967361,94.315,94.191,111.8]
[1646060555573,2.53967361,94.315,94.191,114.54678921]
[1646060556375,2.53967361,94.315,94.191,5.74678921]
[1646060556577,4.243,94.314,94.191,3.0]
[1646060556977,4.243,94.314,94.192,2.74678921]
[1646060557183,4.243,94.314,94.191,3.0]
[1646060557480,2.74678921,94.313,94.191,3.0]
[1646060557676,4.243,94.312,94.191,3.0]
[1646060557877,56.34057451,94.296,94.191,3.0]
[1646060558077,6.73817866,94.295,94.191,3.0]
[1646060558478,9.48496787,94.295,94.191,3.0]
[1646060558679,2.74678921,94.294,94.191,3.0]
[1646060558883,2.74678921,94.294,94.2,12.67]
[1646060559080,4.244,94.293,94.2,12.67]
[1646060559479,2.46713664,94.317,94.2,12.67]
[1646060559680,47.73541483,94.316,94.2,12.67]
[1646060559880,2.57776806,94.315,94.2,12.67]
[1646060560087,108.8,94.315,94.191,3.0]
[1646060560281,6.38579022,94.314,94.191,3.0]
[1646060560481,22.77185082,94.314,94.191,3.0]
[1646060560682,3.73,94.297,94.191,3.0]
[1646060560888,55.92349533,94.296,94.191,3.0]
[1646060561086,4.244,94.295,94.191,3.0]
[1646060561284,108.8,94.294,94.191,3.0]
[1646060561485,4.244,94.293,94.191,3.0]
[1646060561687,6.20846629,94.293,94.191,3.0]
[1646060561884,1.96446629,94.293,94.191,3.0]
[1646060562286,3.73,94.287,94.191,3.0]
[1646060563486,0.6,94.277,94.191,3.0]
[1646060563687,108.8,94.275,94.191,3.0]
[1646060563886,4.244,94.274,94.191,3.0]
[1646060564088,108.8,94.273,94.191,3.0]
[1646060564287,2.33419351,94.27,94.191,3.0]
[1646060564488,2.33419351,94.27,94.132,75.8166]
[1646060564687,2.33419351,94.27,94.06,65.23]
[1646060564688,108.8,94.259,94.1,12.67]
[1646060564888,112.53,94.257,94.1,12.67]
[1646060565088,2.01998151,94.256,94.1,12.67]
[1646060565290,3.73,94.247,94.1,12.67]
[1646060565488,108.8,94.239,94.1,12.67]
[1646060565688,108.8,94.237,94.1,12.67]
[1646060565890,4.247,94.236,94.1,12.67]
[1646060566090,6.42161701,94.236,94.101,108.8]
[1646060566292,2.17461701,94.236,94.101,108.8]
[1646060566691,2.17461701,94.236,94.1,12.67]
[1646060567694,3.126,94.235,94.08,12.67]
[1646060567898,2.0315925,94.233,94.08,12.67]
[1646060568195,2.25612142,94.228,94.08,12.67]
[1646060568799,3.132,94.227,94.08,12.67]
[1646060569098,2.25612142,94.228,94.08,12.67]
[1646060569295,2.25612142,94.228,94.081,108.8]
[1646060569496,4.248,94.227,94.08,12.67]
[1646060569730,0.6,94.217,94.08,12.67]
[1646060569926,108.8,94.214,94.061,74.0638]
[1646060570129,111.42789927,94.209,94.061,74.0638]
[1646060570326,2.35947221,94.208,94.061,74.0638]
[1646060570727,2.38840472,94.206,94.061,74.0638]
[1646060571026,4.249,94.205,94.061,74.0638]
[1646060571232,108.8,94.204,94.061,74.0638]
[1646060571428,108.8,94.202,94.061,74.0638]
[1646060571628,2.65648351,94.201,94.061,74.0638]
[1646060571835,108.8,94.199,94.061,74.0638]
[1646060572132,0.6,94.187,94.061,74.0638]
[1646060572327,108.8,94.179,94.061,74.0638]
[1646060572527,6.62833601,94.178,94.061,74.0638]
[1646060572726,4.249,94.178,94.061,74.0638]
[1646060572927,6.27974271,94.182,94.061,74.0638]
[1646060573328,4.77753192,94.182,94.061,74.0638]
[1646060573527,4.77753192,94.182,94.062,108.8]
[1646060573728,2.03074271,94.182,94.062,108.8]
[1646060575429,2.03074271,94.182,94.061,74.0638]
[1646060575632,2.74678921,94.181,94.061,74.0638]
[1646060576229,2.03074271,94.182,94.061,74.0638]
[1646060576429,2.03074271,94.182,94.062,108.8]
[1646060576829,4.249,94.181,94.062,108.8]
[1646060577130,2.03074271,94.182,94.062,108.8]
[1646060577334,2.03074271,94.182,94.061,74.0638]
[1646060577532,2.03074271,94.182,94.062,108.8]
[1646060577729,2.74678921,94.18,94.061,74.0638]
[1646060577929,2.03074271,94.182,94.061,74.0638]
[1646060578331,2.74678921,94.181,94.061,74.0638]
[1646060578531,2.03074271,94.182,94.062,108.8]
[1646060578731,2.03074271,94.182,94.061,74.0638]
[1646060579133,2.74678921,94.181,94.061,74.0638]
[1646060580738,4.249,94.18,94.061,74.0638]
[1646060580959,2.74678921,94.181,94.061,74.0638]
[1646060581136,2.74678921,94.179,94.062,108.8]
[1646060581337,2.74678921,94.179,94.061,74.0638]
[1646060582338,4.249,94.178,94.061,74.0638]
[1646060582539,2.74678921,94.179,94.061,74.0638]
[1646060582739,2.74678921,94.177,94.061,74.0638]
[1646060582938,2.74678921,94.177,94.04,12.67]
[1646060583139,0.6,94.167,94.04,12.67]
[1646060583341,108.8,94.164,94.04,12.67]
[1646060583539,0.6,94.147,94.015,78.7895]
[1646060583741,0.6,94.137,94.015,78.7895]
[1646060583943,4.251,94.146,94.015,78.7895]
[1646060584340,2.74678921,94.136,94.015,78.7895]
[1646060584540,12.67,94.13,93.99,12.67]
[1646060584741,0.6,94.097,93.977,22.67271234]
[1646060584941,108.8,94.105,93.961,108.8]
[1646060585242,2.74678921,94.096,93.96,12.67]
[1646060585842,2.74678921,94.096,93.941,536.89667194]
[1646060586041,2.55934886,94.093,93.941,78.1272]
[1646060586241,108.8,94.085,93.941,78.1272]
[1646060586442,3.73,94.077,93.927,73.5107]
[1646060586643,0.6,94.047,93.927,73.5107]